bitfinex-derivatives/quotes_SOLF0:USTF0_20250419
["timestamp","ask_amount","ask_price","bid_price","bid_amount"]
[1745032476179,1.33317198,138.01,137.77,4.946]
[1745032476379,1.33317198,138.0,137.77,4.946]
[1745032476579,1.33317198,138.01,137.77,4.946]
[1745032476878,1.33317198,138.0,137.77,4.946]
[1745032477075,1.33317198,137.99,137.77,4.946]
[1745032477275,1.33317198,138.01,137.77,4.946]
[1745032477472,1.25968291,137.99,137.77,4.946]
[1745032477678,1.33295708,137.98,137.77,4.946]
[1745032479979,1.25968291,137.99,137.77,4.946]
[1745032480278,1.33296805,137.98,137.77,4.946]
[1745032481279,1.25968291,137.99,137.77,4.946]
[1745032481478,1.33297244,137.98,137.77,4.946]
[1745032482581,1.33297244,137.98,137.8,4.946]
[1745032485283,1.33297244,138.01,137.8,4.946]
[1745032485583,1.33286335,138.0,137.8,4.946]
[1745032485783,1.33286335,137.99,137.8,4.946]
[1745032485978,1.33286335,138.01,137.8,4.946]
[1745032486176,1.33286335,138.0,137.8,4.946]
[1745032486382,1.33286335,138.01,137.8,4.946]
[1745032486583,1.33286335,137.99,137.8,4.946]
[1745032486785,1.33286335,137.98,137.8,4.946]
[1745032486983,1.33286335,137.99,137.8,4.946]
[1745032487185,1.33286118,137.98,137.8,4.946]
[1745032487482,1.25954613,138.0,137.8,4.946]
[1745032487684,1.33287016,137.99,137.79,2.226]
[1745032488482,1.33287016,137.99,137.8,4.946]
[1745032488684,1.25954613,138.0,137.8,4.946]
[1745032488884,1.33276447,137.98,137.8,4.946]
[1745032489084,1.33276447,137.99,137.8,4.946]
[1745032489284,1.25954613,138.0,137.8,4.946]
[1745032489683,1.33275428,137.99,137.8,4.946]
[1745032490786,1.25954613,138.0,137.8,4.946]
[1745032491585,1.33269721,137.99,137.8,4.946]
[1745032491785,1.25954613,138.0,137.8,4.946]
[1745032492678,1.33272549,137.99,137.8,4.946]
[1745032494289,0.44608,138.02,137.8,4.946]
[1745032494490,1.33271497,138.01,137.8,4.946]
[1745032495089,0.44608,138.02,137.8,4.946]
[1745032495288,1.33271478,138.01,137.8,4.946]
[1745032495591,1.25943217,138.0,137.77,4.946]
[1745032495789,1.33271478,137.99,137.77,4.946]
[1745032496296,1.33305265,137.98,137.77,4.946]
[1745032496483,1.33305265,137.99,137.77,4.946]
[1745032497191,1.33305265,137.99,137.54,1.25943217]
[1745032497391,1.33305265,137.99,137.55,1.32709774]
[1745032497691,1.33305265,137.99,137.56,1.32709774]
[1745032497891,1.33305265,137.99,137.57,1.32709774]
[1745032498092,1.33305265,137.99,137.58,1.32709774]
[1745032498291,1.33305265,137.99,137.59,1.32709774]
[1745032498491,1.33305265,137.99,137.6,1.32709774]
[1745032498690,1.33305265,137.99,137.61,1.32709774]
[1745032498886,1.33305265,137.99,137.62,1.32709774]
[1745032499087,1.33305265,137.99,137.63,1.32709774]
[1745032499287,1.33305265,137.99,137.64,1.32709774]
[1745032499492,1.33305265,137.99,137.65,1.32709774]
[1745032499694,1.33305265,137.99,137.66,1.32709774]
[1745032499887,1.33305265,137.99,137.54,1.25943217]
[1745032500088,1.33284844,137.98,137.67,1.32630959]
[1745032500288,1.33284844,138.01,137.55,1.32630959]
[1745032500493,1.33284844,138.01,137.68,1.32630959]
[1745032500793,1.33284844,138.01,137.69,1.32630959]
[1745032500995,0.44608,138.02,136.52,2.64946242]
[1745032501191,1.33275372,138.0,137.7,1.32628515]
[1745032501394,1.33275359,137.99,137.7,1.32628515]
[1745032501695,1.33275359,137.99,137.71,1.32628469]
[1745032501895,1.33275372,138.0,137.71,1.32628469]
[1745032502195,1.33275372,138.0,137.81,4.946]
[1745032504494,1.25920431,137.99,137.81,4.946]
[1745032504798,1.25920431,137.99,137.84,4.946]
[1745032512105,1.33275372,138.0,137.84,4.946]
[1745032513406,1.25899931,137.99,137.84,4.946]
[1745032513908,1.25899931,137.99,137.87,4.946]
[1745032514208,1.33275372,138.0,137.87,4.946]
[1745032514708,1.33275372,138.0,137.9,4.946]
[1745032519216,1.33275372,138.0,137.93,4.946]
[1745032521817,1.33275372,138.0,137.9,4.946]
[1745032522513,1.33275372,138.0,137.87,4.946]
[1745032523013,1.33275372,138.0,137.84,4.946]
[1745032523614,1.33275372,138.0,137.87,4.946]
[1745032525517,1.25888545,137.99,137.84,4.946]
[1745032526916,1.25888545,137.99,137.87,4.946]
[1745032527111,1.33275372,138.0,137.87,4.946]
[1745032528418,2.59157087,138.0,137.87,4.946]
[1745032531318,1.33275372,138.0,137.91,4.946]
[1745032536721,1.33275372,138.0,137.87,4.946]
[1745032537424,2.5914798,138.0,137.87,4.946]
[1745032539123,1.33275372,138.0,137.87,4.946]
[1745032540526,2.59157087,138.0,137.87,4.946]
[1745032542027,1.33275372,138.0,137.87,4.946]
[1745032543423,2.5915481,138.0,137.87,4.946]
[1745032550432,1.33275372,138.0,137.87,4.946]
[1745032550630,1.33275372,138.0,137.9,4.946]
[1745032554131,1.33275372,138.0,137.87,4.946]
[1745032565939,1.33275372,138.0,137.9,4.946]
[1745032572145,1.33275372,138.0,137.95,4.946]
[1745032576449,1.33275372,138.0,137.96,1.32032569]
[1745032576642,1.33275372,138.0,137.95,4.946]
[1745032576842,1.33275372,138.0,137.99,4.946]
[1745032578041,1.33275372,138.0,137.91,1.32013446]
[1745032578245,1.33275372,138.0,137.92,1.32045695]
[1745032578450,1.33275372,138.0,137.93,1.32045726]
[1745032578747,1.33275372,138.0,137.94,1.32045726]
[1745032578945,1.33275372,138.0,137.92,1.32045726]
[1745032579748,1.33275372,138.0,137.93,1.32015664]
[1745032579943,1.33275372,138.0,137.92,1.32015664]
[1745032580949,1.33275372,138.0,137.91,1.32013446]
[1745032581146,1.33275372,138.0,137.92,1.31987928]
[1745032581647,1.33275372,138.0,137.93,4.946]
[1745032581846,1.33275372,138.0,137.94,1.31987928]
[1745032582250,1.33275372,138.0,137.92,6.26587928]
[1745032582444,1.33275372,138.0,137.95,1.31987928]
[1745032582647,1.33275372,138.0,137.96,1.31987928]
[1745032582848,1.33275372,138.0,137.93,1.31987928]
[1745032583048,1.33275372,138.0,137.94,1.31975682]
[1745032583246,1.33275372,138.0,137.93,1.31975682]
[1745032583449,1.33275372,138.0,137.94,1.31975682]
[1745032583645,1.33275372,138.0,137.93,1.31975682]
[1745032586055,1.33275372,138.0,137.92,4.946]
[1745032586253,1.33275372,138.0,137.93,1.31912647]
[1745032587355,1.33275372,138.0,137.94,1.31938129]
[1745032587556,1.33275372,138.0,137.93,1.31938129]
[1745032587754,1.33275372,138.0,137.95,1.31938129]
[1745032587955,1.33275372,138.0,137.96,1.31938129]
[1745032588151,1.33275372,138.0,137.93,1.31938129]
[1745032588457,1.33275372,138.0,137.94,1.31904151]
[1745032588655,1.33275372,138.0,137.93,1.31904151]
[1745032589356,1.33275372,138.0,137.95,4.946]
[1745032589548,1.33275372,138.0,137.96,1.31904151]
[1745032592560,1.33275372,138.0,137.95,4.946]
[1745032592758,1.33275372,138.0,137.96,1.31812772]
[1745032593654,1.33275372,138.0,137.97,1.31812772]
[1745032593858,1.33275372,138.0,137.93,1.31812772]
[1745032595253,1.33275372,138.0,137.94,1.31831693]
[1745032595456,1.33275372,138.0,137.93,1.31831693]
[1745032595753,1.33275372,138.0,137.94,1.31831693]
[1745032595951,1.33275372,138.0,137.93,1.31831693]
[1745032596259,1.33275372,138.0,137.94,1.31831693]
[1745032596462,1.33275372,138.0,137.92,4.946]
[1745032596660,1.33275372,138.0,137.93,1.31932331]
[1745032597662,1.33275372,138.0,137.92,4.946]
[1745032597863,1.33275372,138.0,137.93,1.31887398]
[1745032598061,1.33275372,138.0,137.92,1.31887398]
[1745032598262,1.33275372,138.0,137.93,1.31887398]
[1745032598461,1.33275372,138.0,137.94,1.31887398]
[1745032598662,1.33275372,138.0,137.92,1.31887398]
[1745032598958,1.33275372,138.0,137.91,1.32013446]
[1745032599156,1.33275372,138.0,137.92,1.31887497]
[1745032600963,1.33275372,138.0,137.94,4.946]
[1745032601163,1.33275372,138.0,137.95,1.31887497]
[1745032601564,1.33275372,138.0,137.96,1.31760751]
[1745032601763,1.33275372,138.0,137.95,1.31760751]
[1745032602064,1.33275372,138.0,137.96,1.31760751]
[1745032602363,1.33275372,138.0,137.97,1.31760751]
[1745032602565,1.33275372,138.0,137.94,4.946]
[1745032602761,1.33275372,138.0,137.95,1.31724598]
[1745032603063,1.33275372,138.0,137.95,2.63448707]
[1745032603261,1.33275372,138.0,137.96,1.31724109]
[1745032605365,1.33275372,138.0,137.97,1.31649108]
[1745032605566,1.33275372,138.0,137.96,1.31649108]
[1745032605767,1.33275372,138.0,137.97,1.31649108]
[1745032605969,1.33275372,138.0,137.96,1.31649108]
[1745032606167,1.33275372,138.0,137.97,1.31649108]
[1745032606368,1.33275372,138.0,137.96,1.31649108]
[1745032606568,1.33275372,138.0,137.97,1.31649108]
[1745032606868,1.33275372,138.0,137.98,1.31649108]
[1745032607069,1.33275372,138.0,137.96,1.31649108]
[1745032607368,1.33275372,138.0,137.97,1.31654422]
[1745032607569,1.33275372,138.0,137.98,1.31654422]
[1745032607868,1.33275372,138.0,137.95,1.31724598]
[1745032608068,1.33275372,138.0,137.96,1.31660701]
[1745032608461,0.4773,138.06,137.96,1.31660701]
[1745032608662,0.4773,138.06,138.04,4.946]
[1745032609269,0.4773,138.06,138.05,1.31660701]
[1745032609570,0.4773,138.06,138.03,4.946]
[1745032610366,0.4773,138.06,138.04,1.32444847]
[1745032611770,0.4773,138.06,138.05,1.32157329]
[1745032613172,0.4773,138.06,138.03,4.946]
[1745032617977,0.4773,138.06,138.04,1.32179767]
[1745032621984,0.4773,138.06,138.03,4.946]
[1745032622183,0.4773,138.06,138.04,1.32159282]
[1745032622979,257.678786,138.37,138.12,4.946]
[1745032623175,1.81005372,138.23,138.16,4.946]
[1745032623383,1.81005372,138.22,138.17,1.32159282]
[1745032623687,1.81005372,138.24,138.17,1.32159282]
[1745032623887,1.81005372,138.25,138.17,1.32159282]
[1745032624089,1.81005372,138.26,138.19,4.946]
[1745032624385,1.81005372,138.26,138.2,1.32159282]
[1745032624587,1.81005372,138.25,138.2,1.32159282]
[1745032624989,1.81005372,138.24,138.2,1.32159282]
[1745032625189,1.81005372,138.22,138.19,4.946]
[1745032625390,1.81005372,138.2,138.14,4.946]
[1745032625595,1.81005372,138.2,138.15,1.31908619]
[1745032625888,1.25838471,138.4,138.15,1.31908619]
[1745032626089,1.81005372,138.22,138.15,0.79226619]
[1745032626390,1.81005372,138.23,138.17,4.946]
[1745032626889,1.81005372,138.21,138.17,4.946]
[1745032627084,1.81005372,138.21,138.14,4.946]
[1745032627388,1.25838471,138.4,138.15,1.31470213]
[1745032627592,1.81005372,138.21,138.15,1.31470213]
[1745032627889,1.25838471,138.4,138.15,1.31470213]
[1745032628089,1.81005372,138.21,138.15,1.31470213]
[1745032628284,1.25838471,138.4,138.15,1.31470213]
[1745032628480,1.81005372,138.2,138.15,1.31470213]
[1745032628885,1.81005372,138.19,138.15,1.31470213]
[1745032629387,103.071514,138.47,138.15,1.31470213]
[1745032629590,1.81005372,138.19,138.15,1.31470213]
[1745032629785,103.071514,138.47,138.15,1.31470213]
[1745032629988,1.81005372,138.2,138.16,1.31391899]
[1745032630189,1.81005372,138.19,138.15,1.31391899]
[1745032631489,1.25854399,138.34,138.14,4.946]
[1745032631695,1.81005372,138.17,138.15,1.31315201]
[1745032631895,1.81005372,138.17,138.11,1.25856675]
[1745032632195,1.81005372,138.16,138.12,1.31379205]
[1745032632395,1.81005372,138.15,138.13,1.31379205]
[1745032632597,1.81005372,138.15,138.03,68.3413521]
[1745032632799,1.81005372,138.15,138.09,4.946]
[1745032632997,1.81005372,138.15,138.1,1.31423562]
[1745032633197,1.81005372,138.15,138.07,1.31421832]
[1745032633398,1.81005372,138.14,138.08,1.31421832]
[1745032633599,1.81005372,138.14,138.09,1.31421832]
[1745032633800,1.81005372,138.13,138.1,1.31421832]
[1745032633999,1.81005372,138.13,138.11,1.31421832]
[1745032634299,1.25902209,138.28,138.07,1.25902209]
[1745032634499,1.81005372,138.13,138.08,1.31443503]
[1745032634902,1.25902209,138.28,138.08,1.31443503]
[1745032635096,1.81005372,138.13,138.08,1.31443503]
[1745032635503,103.071514,138.42,138.08,1.31443503]
[1745032635706,1.81005372,138.13,138.08,1.31443503]
[1745032635904,103.071514,138.42,138.08,1.31443503]
[1745032636205,1.81005372,138.13,138.08,1.31443503]
[1745032636806,1.81005372,138.12,138.08,1.31443503]
[1745032637405,103.071514,138.4,138.08,1.31443503]
[1745032637600,1.81005372,138.11,138.08,1.31443503]
[1745032637904,1.81005372,138.11,138.09,1.31400729]
[1745032638105,1.81005372,138.11,138.1,1.31400729]
[1745032638305,1.81005372,138.11,138.05,1.31400729]
[1745032638505,1.81005372,138.11,138.06,1.31400729]
[1745032638706,1.81005372,138.11,138.05,1.31400729]
[1745032638906,1.81005372,138.11,138.06,1.31400729]
[1745032639206,1.81005372,138.11,138.07,1.31400729]
[1745032639407,1.81005372,138.11,138.05,1.31400729]
[1745032639607,1.81005372,138.11,138.06,1.31400729]
[1745032639807,1.81005372,138.11,138.07,1.31400729]
[1745032640108,1.81005372,138.11,138.08,1.31400729]
[1745032640299,1.81005372,138.11,138.09,1.31400729]
[1745032640506,1.81005372,138.11,138.1,1.3133627]
[1745032640708,103.071514,138.38,138.1,1.3133627]
[1745032640907,1.81005372,138.13,138.11,1.3133627]
[1745032641111,1.81005372,138.13,138.07,4.946]
[1745032641301,103.071514,138.38,138.08,1.31323081]
[1745032641608,1.81005372,138.17,138.1,4.946]
[1745032641810,1.81005372,138.17,138.11,1.31323081]
[1745032642610,1.25897654,138.31,138.12,1.3128671]
[1745032642805,1.81005372,138.17,138.13,1.3128671]
[1745032643105,1.81005372,138.19,138.14,6.2588671]
[1745032643304,1.81005372,138.19,138.15,1.3128671]
[1745032643608,103.071514,138.43,138.15,1.3128671]
[1745032643806,1.81005372,138.19,138.15,1.3128671]
[1745032644201,1.81005372,138.19,138.16,1.31114055]
[1745032644405,1.81005372,138.19,138.17,1.31114055]
[1745032644610,1.81005372,138.19,138.14,4.946]
[1745032644908,1.81005372,138.19,138.15,1.31096879]
[1745032645100,1.25868056,138.33,138.15,1.31096879]
[1745032645298,1.81005372,138.19,138.15,1.31096879]
[1745032645708,1.81005372,138.18,138.11,4.946]
[1745032645907,1.81005372,138.18,138.12,1.31096879]
[1745032646311,1.81005372,138.15,138.12,1.31096879]
[1745032647112,1.25868056,138.33,138.12,1.31096879]
[1745032647313,1.81005372,138.15,138.13,1.3123438]
[1745032647612,1.81005372,138.15,138.14,1.3123438]
[1745032647810,103.071514,138.44,138.12,1.3123438]
[1745032648107,1.81005372,138.15,138.13,1.3123438]
[1745032648307,1.81005372,138.15,138.14,1.3123438]
[1745032648912,1.25890822,138.43,138.14,1.31272559]
[1745032649115,1.81005372,138.16,138.11,4.946]
[1745032649416,1.81005372,138.16,138.12,1.31260944]
[1745032649913,1.25890822,138.43,138.12,1.31260944]
[1745032650114,1.81005372,138.15,138.12,1.31260944]
[1745032650314,1.32711083,138.42,138.12,1.31260944]
[1745032650509,1.81005372,138.15,138.13,1.31238018]
[1745032651012,1.32711245,138.41,138.13,1.31238018]
[1745032651311,1.81005372,138.15,138.13,1.31238018]
[1745032651510,1.32711245,138.41,138.12,1.31238018]
[1745032651711,1.81005372,138.15,138.12,1.31238018]
[1745032651914,1.81005372,138.15,138.14,1.31238018]
[1745032652212,1.25620431,138.4,137.91,1.32013446]
[1745032652414,1.81005372,138.13,138.07,4.946]
[1745032652614,1.81005372,138.13,138.08,1.31223728]
[1745032652815,1.81005372,138.12,138.08,1.31223728]
[1745032653621,1.25620431,138.4,138.07,4.946]
[1745032653818,1.25620431,138.4,138.08,1.31247777]
[1745032653819,1.81005372,138.13,138.08,1.31247777]
[1745032654220,1.25620431,138.4,138.08,1.31247777]
[1745032654425,1.81005372,138.13,138.08,1.31247777]
[1745032654721,1.81005372,138.1,138.08,1.31247777]
[1745032655020,1.81005372,138.1,138.09,1.31247777]
[1745032655216,1.25620431,138.4,138.01,6.20279409]
[1745032655418,1.81005372,138.1,138.02,1.31296017]
[1745032655819,1.25620431,138.4,138.02,1.31296017]
[1745032656020,1.81005372,138.1,138.02,1.31296017]
[1745032656221,2.65942125,139.58,138.02,1.31296017]
[1745032656416,1.81005372,138.1,138.02,1.31296017]
[1745032656622,2.65942125,139.58,138.02,1.31296017]
[1745032656821,1.81005372,138.1,138.02,1.31296017]
[1745032657022,2.65942125,139.58,138.02,1.31296017]
[1745032657222,1.81005372,138.1,138.02,1.31296017]
[1745032657424,2.65942125,139.55,138.02,1.31296017]
[1745032657724,1.81005372,138.1,138.02,1.31296017]
[1745032658224,2.65942125,139.55,138.03,1.31383859]
[1745032658522,1.81005372,138.1,138.04,1.31383859]
[1745032658723,1.81005372,138.1,138.02,1.31383859]
[1745032658925,1.81005372,138.1,138.03,1.31383859]
[1745032659122,1.81005372,138.1,138.04,1.31383859]
[1745032659424,1.81005372,138.1,138.05,1.31383859]
[1745032659624,1.81005372,138.1,138.06,1.31383859]
[1745032659925,1.81005372,138.1,138.07,1.31383859]
[1745032660125,1.81005372,138.1,138.01,4.946]
[1745032660325,1.81005372,138.1,138.02,1.31351651]
[1745032661125,1.81005372,138.09,138.02,1.31351651]
[1745032661325,1.81005372,138.08,138.02,1.31351651]
[1745032661622,1.81005372,138.07,138.01,4.946]
[1745032661826,1.81005372,138.07,138.02,1.31418099]
[1745032662021,1.25693027,138.22,138.02,1.31418099]
[1745032662226,1.81005372,138.07,138.02,1.31418099]
[1745032662427,1.81005372,138.08,138.02,1.31418099]
[1745032663230,1.81005372,138.09,138.02,1.31418099]
[1745032663925,1.25695297,138.22,138.02,1.31418099]
[1745032664128,1.81005372,138.09,138.02,1.31418099]
[1745032664327,1.81005372,138.08,138.02,1.31418099]
[1745032664832,1.81005372,138.08,138.03,1.31334895]
[1745032665031,1.25695297,138.22,138.02,1.31334895]
[1745032665230,1.81005372,138.09,138.02,1.31334895]
[1745032666432,1.81005372,138.09,138.03,1.31320944]
[1745032666632,1.81005372,138.09,138.04,1.31320944]
[1745032666837,1.81005372,138.09,138.02,1.31320944]
[1745032667133,1.81005372,138.09,138.03,1.31320944]
[1745032667330,1.81005372,138.08,138.04,1.31320944]
[1745032667531,1.81005372,138.08,138.05,1.31320944]
[1745032667730,1.25693027,138.22,138.02,1.31320944]
[1745032667933,1.81005372,138.08,138.01,4.946]
[1745032668132,1.81005372,138.07,138.02,1.31320887]
[1745032669234,1.81005372,138.05,138.0,0.52339]
[1745032669433,1.81005372,138.05,138.01,1.31370849]
[1745032669833,1.81005372,138.05,138.0,0.52339]
[1745032669834,1.81005372,138.05,138.02,1.31397738]
[1745032670133,1.81005372,138.05,138.01,1.31397738]
[1745032670333,1.81005372,138.05,138.03,1.31397738]
[1745032670633,1.25693027,138.22,138.03,1.31397738]
[1745032670833,1.81005372,138.05,138.03,1.31397738]
[1745032671033,1.25693027,138.22,138.01,1.31397738]
[1745032671234,1.81005372,138.07,138.0,0.52339]
[1745032671735,1.81005372,138.07,138.01,1.31443228]
[1745032672130,2.65942125,139.54,138.01,1.31443228]
[1745032672334,1.81005372,138.07,138.01,1.31443228]
[1745032672735,1.2571346,139.53,138.01,1.31443228]
[1745032672928,1.81005372,138.07,138.01,1.31443228]
[1745032673328,2.65942125,139.52,138.01,1.31443228]
[1745032673534,1.81005372,138.07,138.0,0.52339]
[1745032673735,1.81005372,138.07,138.01,1.31458419]
[1745032673935,1.81005372,138.06,138.01,1.31458419]
[1745032675634,1.81005372,138.06,138.0,0.52339]
[1745032675837,2.65942125,139.52,138.01,1.31434741]
[1745032676032,1.81005372,138.06,138.01,1.31434741]
[1745032676229,2.65942125,139.52,138.01,1.31434741]
[1745032676430,1.81005372,138.06,138.01,1.31434741]
[1745032676834,2.65942125,139.52,138.01,1.31434741]
[1745032677134,1.81005372,138.06,138.01,1.31434741]
[1745032677538,1.81005372,138.06,138.0,0.52339]
[1745032677738,1.81005372,138.04,138.01,1.31405346]
[1745032677939,1.81005372,138.03,138.01,1.31405346]
[1745032678138,1.81005372,138.04,138.01,1.31405346]
[1745032678734,1.81005372,138.04,138.0,0.52339]
[1745032679039,1.81005372,138.04,138.01,1.31469533]
[1745032679940,1.81005372,138.03,138.01,1.31469533]
[1745032680239,1.81005372,138.03,138.02,1.31525443]
[1745032680539,2.65942125,139.5,138.02,1.31525443]
[1745032680741,1.81005372,138.03,138.0,0.52339]
[1745032680941,1.81005372,138.04,138.01,1.31488471]
[1745032681141,1.81005372,138.03,138.02,1.31491603]
[1745032681641,1.81005372,138.03,138.01,1.31491603]
[1745032682042,1.25740714,138.17,138.01,1.31491603]
[1745032682237,1.81005372,138.09,138.01,6.26091603]
[1745032682541,1.81005372,138.09,138.02,1.31408141]
[1745032683641,1.81005372,138.09,138.01,4.946]
[1745032683841,1.81005372,138.09,138.02,1.31395683]
[1745032684940,1.81005372,138.09,138.03,1.31397135]
[1745032685136,1.81005372,138.09,138.02,1.31397135]
[1745032685335,1.81005372,138.09,138.03,1.31397135]
[1745032685536,1.81005372,138.09,138.04,1.31397135]
[1745032685740,1.81005372,138.09,138.05,1.31397135]
[1745032685941,1.81005372,138.09,138.06,1.31397135]
[1745032686140,1.81005372,138.09,138.07,1.31397135]
[1745032686342,1.81005372,138.09,138.02,1.31397135]
[1745032686942,2.65942125,139.54,138.02,1.31397135]
[1745032687142,1.81005372,138.1,138.02,1.31397135]
[1745032687541,1.81005372,138.1,138.03,1.31325577]
[1745032687741,1.81005372,138.1,138.04,4.946]
[1745032687941,1.81005372,138.09,138.05,1.31325577]
[1745032688743,1.25688488,138.24,138.05,1.31325577]
[1745032688942,1.81005372,138.1,138.05,1.31325577]
[1745032689343,1.81005372,138.09,138.05,1.31325577]
[1745032690045,1.81005372,138.09,138.04,4.946]
[1745032690244,2.65942125,139.55,138.05,1.31308737]
[1745032690438,1.81005372,138.09,138.05,1.31308737]
[1745032690637,1.25681679,138.23,138.05,1.31308737]
[1745032690838,1.81005372,138.09,138.05,1.31308737]
[1745032691045,1.25681679,138.23,138.05,1.31308737]
[1745032691237,1.81005372,138.09,138.05,1.31308737]
[1745032691746,1.81005372,138.09,138.04,4.946]
[1745032691947,1.25681679,138.23,138.06,1.31320506]
[1745032692246,1.81005372,138.09,138.05,1.31320506]
[1745032692446,1.81005372,138.09,138.07,1.31320506]
[1745032692647,2.65942125,139.55,138.04,4.946]
[1745032692843,1.32786018,139.54,138.05,1.31379618]
[1745032693146,1.81005372,138.08,138.05,1.31379618]
[1745032693645,1.25681679,139.53,138.05,1.31379618]
[1745032693839,1.81005372,138.08,138.05,1.31379618]
[1745032694240,1.81005372,138.08,138.01,1.31379618]
[1745032694444,1.81005372,138.08,138.02,1.31379618]
[1745032694645,1.81005372,138.08,138.03,1.31379618]
[1745032694845,1.81005372,138.08,138.04,1.31379618]
[1745032695041,1.81005372,138.08,138.01,1.31379618]
[1745032695246,1.81005372,138.08,138.0,6.72620679]
[1745032695446,1.81005372,138.08,138.01,1.31429771]
[1745032696448,1.81005372,138.08,138.0,6.72620679]
[1745032696643,1.81005372,138.08,138.01,1.31400225]
[1745032697749,1.81005372,138.08,138.0,6.72620679]
[1745032698050,1.81005372,138.07,138.01,1.31399591]
[1745032698950,1.81005372,138.06,138.01,1.31399591]
[1745032699154,1.81005372,138.06,138.02,1.31411193]
[1745032699453,1.25704378,138.21,138.03,1.31411193]
[1745032699651,1.81005372,138.06,138.01,1.31411193]
[1745032700252,1.81005372,138.06,138.0,6.72643378]
[1745032700451,1.25704378,138.21,138.01,1.3140759]
[1745032700652,1.81005372,138.07,138.01,1.3140759]
[1745032702854,1.81005372,138.07,138.02,1.31384735]
[1745032703151,1.81005372,138.07,138.03,1.31384735]
[1745032703450,1.81005372,138.07,138.04,1.31384735]
[1745032703651,1.81005372,138.07,138.05,1.31384735]
[1745032703950,1.25704378,138.21,138.06,1.31384735]
[1745032704147,1.81005372,138.06,138.0,5.46939]
[1745032704351,1.81005372,138.06,138.01,1.31315196]
[1745032704853,1.81005372,138.05,138.01,1.31315196]
[1745032705053,1.81005372,138.03,138.01,1.31315196]
[1745032705254,1.81005372,138.03,138.0,0.52339]
[1745032705453,1.81005372,138.03,138.01,1.31366541]
[1745032707558,1.81005372,138.02,138.01,1.31366541]
[1745032707759,1.81005372,138.02,136.78,2.63153968]
[1745032707960,1.81005372,138.02,137.96,6.26026809]
[1745032708156,1.81005372,138.02,137.97,1.31426809]
[1745032710255,1.81005372,138.02,137.98,1.31424603]
[1745032710759,1.81005372,138.02,137.96,6.26024603]
[1745032710957,2.65942125,139.48,137.97,1.31424603]
[1745032710958,1.81005372,138.01,137.97,1.31424603]
[1745032712054,1.81005372,138.01,137.98,1.31414767]
[1745032712256,1.81005372,138.01,137.97,1.31414767]
[1745032712559,1.81005372,138.01,137.98,1.31414767]
[1745032712758,1.81005372,138.01,137.97,1.31414767]
[1745032713058,1.81005372,138.01,137.98,1.31414767]
[1745032713258,1.81005372,138.01,137.97,1.31414767]
[1745032713461,1.81005372,138.01,137.98,1.31414767]
[1745032713759,1.81005372,138.01,137.99,1.31414767]
[1745032713962,2.65942125,139.48,137.97,1.31414767]
[1745032714260,1.81005372,138.03,137.98,1.31414767]
[1745032714460,1.81005372,138.03,137.97,1.31414767]
[1745032714663,1.81005372,138.03,137.98,1.31414767]
[1745032714854,1.81005372,138.03,137.99,1.31414767]
[1745032715057,1.81005372,138.03,138.0,1.31414767]
[1745032715255,1.81005372,138.03,137.97,1.31414767]
[1745032715459,1.81005372,138.03,137.98,1.31260788]
[1745032715662,1.81005372,138.03,137.97,1.31260788]
[1745032715862,1.81005372,138.03,137.99,1.31260788]
[1745032716057,1.81005372,138.03,138.0,1.31260788]
[1745032716259,1.81005372,138.03,137.97,1.31260788]
[1745032716459,1.81005372,138.03,138.01,1.31260788]
[1745032716660,2.65942125,139.48,138.02,1.31241384]
[1745032716860,1.81005372,138.02,137.97,1.31241384]
[1745032717063,1.81005372,138.02,137.98,1.31254179]
[1745032717259,2.65942125,139.49,137.99,1.31254179]
[1745032717463,1.81005372,138.04,137.99,4.946]
[1745032717662,1.81005372,138.04,138.0,1.31254179]
[1745032717860,1.81005372,138.04,138.01,1.311738]
[1745032718161,1.25731628,138.19,138.02,1.311738]
[1745032718363,1.81005372,138.05,138.03,1.311738]
[1745032718661,1.81005372,138.05,138.04,1.311738]
[1745032718862,2.65942125,139.49,138.0,1.311738]
[1745032719059,1.81005372,138.05,138.04,1.311738]
[1745032719465,2.65942125,139.49,138.0,1.311738]
[1745032719657,1.81005372,138.05,138.0,1.311738]
[1745032720156,2.65942125,139.52,138.0,1.311738]
[1745032720360,1.81005372,138.05,138.0,1.311738]
[1745032720963,1.81005372,138.04,138.0,1.311738]
[1745032721364,1.81005372,138.03,138.0,1.311738]
[1745032721560,1.81005372,138.03,138.01,1.31080587]
[1745032721766,1.2571346,139.51,138.01,1.31080587]
[1745032721965,1.81005372,138.05,138.02,1.31015619]
[1745032722164,1.81005372,138.05,138.0,1.31015619]
[1745032722364,1.81005372,138.05,138.01,1.31015619]
[1745032722664,1.81005372,138.05,138.02,1.31015619]
[1745032722861,1.81005372,138.05,138.03,1.31015619]